[Event "4NCL 2021-22"]
[Site "England"]
[Date "2022.02.12"]
[Round "3.69"]
[White "Burnett, Andrew"]
[Black "Kett, Tim"]
[Result "0-1"]
[ECO "E05"]
[WhiteElo "2176"]
[BlackElo "2136"]
[Annotator "ChessBase"]
[PlyCount "66"]
[EventDate "2021.11.27"]
[EventType "team-tourn"]
[EventCountry "ENG"]
[SourceTitle "playchess.com"]
[Source "ChessBase"]
[SourceQuality "1"]
[TimeControl "40/6000+30:3000+30"]

1. d4 {[%emt 0:00:04]} d5 {[%emt 0:00:12]} 2. c4 {[%emt 0:00:23]} e6 {[%emt 0:00:07]} 3. Nf3 {[%emt 0:00:22]} Nf6 {[%emt 0:00:15]} 4. Nc3 {[%emt 0:00:16]} Be7 {[%emt 0:02:13]} 5. g3 {[%emt 0:00:15]} O-O {[%emt 0:01:15]} 6. Bg2 {[%emt 0:00:09]} dxc4 {[%emt 0:01:53]} 7. O-O {[%emt 0:00:32]} Nc6 {[%emt 0:07:24]} 8. e4 {[%emt 0:04:54]} Rb8 {[%emt 0:08:00]} 9. Bf4 {[%emt 0:04:25]} b5 {[%emt 0:09:38]} 10. a3 {[%emt 0:00:36]} a6 {[%emt 0:05:59]} 11. d5 {[%emt 0:08:09]} exd5 {[%emt 0:07:11]} 12. exd5 {[%emt 0:03:02]} Na5 {[%emt 0:00:41]} 13. Qc2 {[%emt 0:00:31]} Bd6 {[%emt 0:09:30]} 14. Be3 {[%emt 0:09:36]} Nb3 {[%emt 0:01:59]} 15. Rad1 {[%emt 0:00:35]} Bg4 {[%emt 0:01:30]} 16. h3 {[%emt 0:21:23]} Bh5 {[%emt 0:01:47]} 17. g4 {[%emt 0:00:30]} Bg6 {[%emt 0:00:15]} 18. Qe2 {[%emt 0:00:08]} Re8 {[%emt 0:09:18]} 19. Nh4 {[%emt 0:13:02]} Bd3 {[%emt 0:01:18]} 20. Rxd3 {[%emt 0:03:58]} cxd3 {[%emt 0:00:07]} 21. Qd1 {[%emt 0:00:33]} b4 {[%emt 0:10:28]} 22. axb4 {[%emt 0:03:00]} Rxb4 {[%emt 0:00:21]} 23. Nf5 {[%emt 0:00:56]} Nc5 {[%emt 0:02:08]} 24. Qc1 {[%emt 0:01:34]} Nfe4 {[%emt 0:05:20]} 25. f3 {[%emt 0:02:37]} d2 {[%emt 0:05:11]} 26. Bxd2 {[%emt 0:03:06]} Nb3 {[%emt 0:01:13]} 27. Nxe4 {[%emt 0:02:26]} Nxc1 {[%emt 0:00:15]} 28. Rxc1 {[%emt 0:00:16]} Rb8 {[%emt 0:07:04]} 29. Ba5 {[%emt 0:01:17]} Qd7 {[%emt 0:01:19]} 30. Rc6 {[%emt 0:05:09]} Rxb2 {[%emt 0:03:54]} 31. Bf1 {[%emt 0:01:27]} Bh2+ {[%emt 0:01:53]} 32. Kh1 {[%emt 0:00:14]} Qxd5 {[%emt 0:00:27]} 33. Rxa6 {[%emt 0:01:21]} Rxe4 {[%emt 0:03:14]} 0-1

[Event "4NCL 2021-22"]
[Site "England"]
[Date "2022.02.12"]
[Round "3.70"]
[White "Zeidler, Sven P."]
[Black "Schwartz, Julius"]
[Result "0-1"]
[ECO "B23"]
[WhiteElo "2172"]
[BlackElo "2088"]
[Annotator "ChessBase"]
[PlyCount "116"]
[EventDate "2021.11.27"]
[EventType "team-tourn"]
[EventCountry "ENG"]
[SourceTitle "playchess.com"]
[Source "ChessBase"]
[SourceQuality "1"]
[TimeControl "40/6000+30:3000+30"]

1. e4 {[%emt 0:00:03]} c5 {[%emt 0:00:05]} 2. Nc3 {[%emt 0:00:05]} d6 {[%emt 0:00:04]} 3. f4 {[%emt 0:00:18]} Nc6 {[%emt 0:00:14]} 4. Nf3 {[%emt 0:01:19]} g6 {[%emt 0:00:38]} 5. Bb5 {[%emt 0:01:57]} Bg7 {[%emt 0:03:27]} 6. O-O {[%emt 0:01:19]} Bd7 {[%emt 0:00:36]} 7. Bxc6 {[%emt 0:01:04]} Bxc6 {[%emt 0:00:37]} 8. d3 {[%emt 0:00:41]} Nf6 {[%emt 0:04:57]} 9. Qe1 {[%emt 0:03:13]} Nd7 {[%emt 0:06:49]} 10. Qh4 {[%emt 0:23:54]} h6 {[%emt 0:13:56]} 11. Bd2 {[%emt 0:05:22]} Qc7 {[%emt 0:24:07]} 12. Rae1 {[%emt 0:07:23]} g5 {[%emt 0:08:40]} 13. fxg5 {[%emt 0:32:40]} hxg5 {[%emt 0:01:26]} 14. Qxg5 {[%emt 0:00:09]} Bf6 {[%emt 0:02:03]} 15. Nd5 {[%emt 0:04:49]} Bxd5 {[%emt 0:00:07]} 16. Qxd5 {[%emt 0:00:07]} e6 {[%emt 0:01:04]} 17. Qb3 {[%emt 0:00:42]} O-O-O {[%emt 0:07:57]} 18. Bf4 {[%emt 0:01:17]} Rdg8 {[%emt 0:04:58]} 19. c3 {[%emt 0:00:31]} Rg4 {[%emt 0:02:33]} 20. Bg3 {[%emt 0:00:23]} Qc6 {[%emt 0:07:47]} 21. Re2 {[%emt 0:00:57]} Rhg8 {[%emt 0:03:05]} 22. Rfe1 {[%emt 0:00:49]} Bd8 {[%emt 0:04:27]} 23. c4 {[%emt 0:08:19]} Nf6 {[%emt 0:00:53]} 24. Qb5 {[%emt 0:00:58]} Qxb5 {[%emt 0:05:07]} 25. cxb5 {[%emt 0:00:03]} Bc7 {[%emt 0:00:38]} 26. e5 {[%emt 0:04:01]} Nh5 {[%emt 0:00:42]} 27. exd6 {[%emt 0:00:11]} Nxg3 {[%emt 0:00:08]} 28. hxg3 {[%emt 0:00:09]} Bxd6 {[%emt 0:00:05]} 29. Ne5 {[%emt 0:00:41]} Rxg3 {[%emt 0:01:05]} 30. Nxf7 {[%emt 0:04:16]} Bf4 {[%emt 0:00:07]} 31. Ne5 {[%emt 0:01:26]} Bxe5 {[%emt 0:00:48]} 32. Rxe5 {[%emt 0:00:05]} Rxg2+ {[%emt 0:00:03]} 33. Kf1 {[%emt 0:00:30]} Rg1+ {[%emt 0:02:03]} 34. Kf2 {[%emt 0:00:40]} R1g2+ {[%emt 0:00:13]} 35. Kf1 Rxb2 {[%emt 0:00:30]} 36. Rxc5+ Kd7 {[%emt 0:00:30]} 37. Rec1 Kd6 {[%emt 0:00:30]} 38. a4 Rg3 {[%emt 0:00:30]} 39. Rc7 Rf3+ {[%emt 0:00:30]} 40. Kg1 Rb1 {[%emt 0:00:30]} 41. Rxb1 Kxc7 {[%emt 0:50:30]} 42. Rb3 Kb6 {[%emt 0:00:30]} 43. Kg2 Rf4 {[%emt 0:00:30]} 44. Ra3 Ka5 {[%emt 0:00:30]} 45. Rc3 Rxa4 {[%emt 0:00:30]} 46. Rc7 Kb6 {[%emt 0:00:30]} 47. Re7 Rd4 {[%emt 0:00:30]} 48. Rxe6+ Kxb5 {[%emt 0:00:30]} 49. Re5+ Kc6 {[%emt 0:00:30]} 50. Re3 a5 {[%emt 0:00:30]} 51. Kf3 a4 {[%emt 0:00:30]} 52. Ke2 a3 {[%emt 0:00:30]} 53. Kd2 Rb4 {[%emt 0:00:30]} 54. Re1 Rb2+ {[%emt 0:00:30]} 55. Ke3 b5 {[%emt 0:00:30]} 56. Ra1 b4 {[%emt 0:00:30]} 57. Ke4 a2 {[%emt 0:00:30]} 58. Rh1 Rb1 {[%emt 0:00:30]} 0-1

[Event "4NCL 2021-22"]
[Site "England"]
[Date "2022.02.12"]
[Round "3.71"]
[White "White, Stuart A"]
[Black "Macfarlane, Donald"]
[Result "1/2-1/2"]
[ECO "E20"]
[WhiteElo "2041"]
[BlackElo "2200"]
[Annotator "ChessBase"]
[PlyCount "64"]
[EventDate "2021.11.27"]
[EventType "team-tourn"]
[EventCountry "ENG"]
[SourceTitle "playchess.com"]
[Source "ChessBase"]
[SourceQuality "1"]
[TimeControl "40/6000+30:3000+30"]

1. d4 {[%emt 0:00:04]} Nf6 {[%emt 0:00:59]} 2. c4 {[%emt 0:00:07]} e6 {[%emt 0:03:06]} 3. Nc3 {[%emt 0:01:08]} Bb4 {[%emt 0:01:13]} 4. f3 {[%emt 0:00:26]} Bxc3+ {[%emt 0:03:41]} 5. bxc3 {[%emt 0:00:10]} d6 {[%emt 0:00:04]} 6. e4 {[%emt 0:08:53]} b6 {[%emt 0:00:41]} 7. Bd3 {[%emt 0:02:22]} Bb7 {[%emt 0:00:10]} 8. Nh3 {[%emt 0:04:58]} Nbd7 {[%emt 0:05:50]} 9. O-O {[%emt 0:03:14]} Qe7 {[%emt 0:03:22]} 10. Qe2 {[%emt 0:12:38]} e5 {[%emt 0:03:25]} 11. Nf2 {[%emt 0:07:39]} Nh5 {[%emt 0:18:36]} 12. g3 {[%emt 0:03:58]} g6 {[%emt 0:12:31]} 13. Ng4 {[%emt 0:09:31]} f6 {[%emt 0:04:32]} 14. Ne3 {[%emt 0:01:41]} c6 {[%emt 0:03:17]} 15. a4 {[%emt 0:02:10]} O-O {[%emt 0:05:55]} 16. f4 {[%emt 0:07:17]} exf4 {[%emt 0:08:53]} 17. gxf4 {[%emt 0:00:32]} Ng7 {[%emt 0:00:38]} 18. f5 {[%emt 0:04:22]} gxf5 {[%emt 0:08:23]} 19. Nxf5 {[%emt 0:06:06]} Nxf5 {[%emt 0:00:07]} 20. Rxf5 {[%emt 0:00:15]} Kh8 {[%emt 0:00:52]} 21. Bf4 {[%emt 0:01:26]} Rg8+ {[%emt 0:01:07]} 22. Bg3 {[%emt 0:01:07]} c5 {[%emt 0:01:34]} 23. Raf1 {[%emt 0:06:30]} Rae8 {[%emt 0:01:19]} 24. R5f4 {[%emt 0:01:06]} Rg6 {[%emt 0:01:18]} 25. Rg4 {[%emt 0:13:45]} Qe6 {[%emt 0:01:41]} 26. Rxg6 {[%emt 0:01:22]} hxg6 {[%emt 0:00:02]} 27. d5 {[%emt 0:01:58]} Qe7 {[%emt 0:01:04]} 28. e5 {[%emt 0:05:15]} Nxe5 {[%emt 0:05:10]} 29. Bxe5 {[%emt 0:00:07]} fxe5 {[%emt 0:01:22]} 30. Be4 {[%emt 0:02:04]} Bc8 {[%emt 0:02:51]} 31. Qf2 {[%emt 0:00:42]} Bf5 {[%emt 0:04:31]} 32. Bxf5 {[%emt 0:01:06]} Qg5+ {[%emt 0:00:09]} 1/2-1/2

[Event "4NCL 2021-22"]
[Site "England"]
[Date "2022.02.12"]
[Round "3.72"]
[White "Khoury, Theo"]
[Black "Gordon, Frederick"]
[Result "1-0"]
[ECO "B39"]
[WhiteElo "2011"]
[BlackElo "1853"]
[Annotator "NA"]
[PlyCount "75"]
[EventDate "2021.11.27"]
[EventType "team-tourn"]
[EventCountry "ENG"]
[SourceTitle "playchess.com"]
[Source "ChessBase"]
[SourceQuality "1"]
[TimeControl "40/6000+30:3000+30"]

1. e4 {[%emt 0:00:05]} c5 {[%emt 0:00:05]} 2. Nf3 {[%emt 0:00:10]} g6 {[%emt 0:00:04]} 3. d4 {[%emt 0:00:16]} cxd4 {[%emt 0:00:04]} 4. Nxd4 {[%emt 0:00:10]} Nc6 {[%emt 0:00:05]} 5. c4 {[%emt 0:00:10]} Nf6 {[%emt 0:00:04]} 6. Nc3 {[%emt 0:00:26]} Nxd4 {[%emt 0:00:10]} 7. Qxd4 {[%emt 0:00:12]} d6 {[%emt 0:00:03]} 8. f3 {[%emt 0:00:15]} Bg7 {[%emt 0:00:05]} 9. Be3 {[%emt 0:00:12]} O-O {[%emt 0:00:09]} 10. Qd2 {[%emt 0:00:13]} Be6 {[%emt 0:00:05]} 11. Rc1 {[%emt 0:01:00]} a5 {[%emt 0:00:50]} 12. b3 {[%emt 0:00:31]} Nd7 {[%emt 0:04:55]} 13. Be2 {[%emt 0:04:22]} Nc5 {[%emt 0:01:57]} 14. O-O {[%emt 0:04:09]} Qb6 {[%emt 0:03:44]} 15. Rfd1 {[%emt 0:05:47]} Rfc8 {[%emt 0:05:37]} 16. Nb5 {[%emt 0:04:45]} Bd7 {[%emt 0:03:25]} 17. Nd4 {[%emt 0:03:20]} Qb4 {[%emt 0:03:59]} 18. Nc2 {[%emt 0:10:01]} Qxd2 {[%emt 0:01:30]} 19. Rxd2 {[%emt 0:00:37]} Bb2 {[%emt 0:01:57]} 20. Rb1 {[%emt 0:00:54]} Bc3 {[%emt 0:01:52]} 21. Rdd1 {[%emt 0:00:38]} f5 {[%emt 0:03:03]} 22. Bxc5 {[%emt 0:06:46]} Rxc5 {[%emt 0:00:10]} 23. exf5 {[%emt 0:03:52]} gxf5 {[%emt 0:03:38]} 24. Ne3 {[%emt 0:06:17]} Re8 {[%emt 0:07:44]} 25. Nd5 {[%emt 0:01:19]} Bg7 {[%emt 0:02:24]} 26. Kf2 {[%emt 0:03:01]} Kf7 {[%emt 0:05:47]} 27. f4 {[%emt 0:01:09]} Rb8 {[%emt 0:04:07]} 28. Bh5+ {[%emt 0:01:28]} Kf8 {[%emt 0:01:50]} 29. Re1 {[%emt 0:03:15]} Bd4+ {[%emt 0:01:48]} 30. Kg3 {[%emt 0:01:32]} e5 {[%emt 0:04:05]} 31. fxe5 {[%emt 0:05:57]} dxe5 {[%emt 0:01:05]} 32. Rbd1 {[%emt 0:05:22]} Kg7 {[%emt 0:04:53]} 33. Rxd4 {[%emt 0:01:18]} exd4 {[%emt 0:00:56]} 34. Re7+ {[%emt 0:00:05]} Kh6 {[%emt 0:13:00]} 35. Rxd7 {[%emt 0:00:14]} Kxh5 {[%emt 0:00:11]} 36. Nf4+ {[%emt 0:00:04]} Kh6 {[%emt 0:02:46]} 37. Rd6+ {[%emt 0:00:11]} Kg5 {[%emt 0:01:39]} 38. h4# {[%emt 0:00:36]} 1-0

[Event "4NCL 2021-22"]
[Site "England"]
[Date "2022.02.12"]
[Round "3.73"]
[White "Gallana, Marco"]
[Black "Ratnesan, Ranesh"]
[Result "1-0"]
[ECO "D10"]
[WhiteElo "2277"]
[BlackElo "2258"]
[Annotator "ChessBase"]
[PlyCount "115"]
[EventDate "2021.11.27"]
[EventType "team-tourn"]
[EventCountry "ENG"]
[SourceTitle "playchess.com"]
[Source "ChessBase"]
[SourceQuality "1"]
[TimeControl "40/6000+30:3000+30"]

1. d4 {[%emt 0:00:03]} d5 {[%emt 0:00:09]} 2. c4 {[%emt 0:00:08]} c6 {[%emt 0:00:08]} 3. cxd5 {[%emt 0:00:47]} cxd5 {[%emt 0:00:09]} 4. Nc3 {[%emt 0:00:09]} Nf6 {[%emt 0:00:14]} 5. Bf4 {[%emt 0:00:09]} Nc6 {[%emt 0:00:48]} 6. e3 {[%emt 0:00:12]} Bg4 {[%emt 0:01:29]} 7. Qb3 {[%emt 0:00:23]} Na5 {[%emt 0:01:27]} 8. Qa4+ {[%emt 0:00:31]} Bd7 {[%emt 0:00:18]} 9. Qc2 {[%emt 0:00:23]} e6 {[%emt 0:01:18]} 10. Bd3 {[%emt 0:00:21]} Rc8 {[%emt 0:03:37]} 11. Nf3 {[%emt 0:00:58]} Be7 {[%emt 0:02:53]} 12. O-O {[%emt 0:00:55]} O-O {[%emt 0:05:49]} 13. h3 {[%emt 0:09:33]} b5 {[%emt 0:03:31]} 14. a3 {[%emt 0:01:54]} h6 {[%emt 0:02:14]} 15. Qe2 {[%emt 0:04:23]} a6 {[%emt 0:06:02]} 16. Ne5 {[%emt 0:04:33]} Be8 {[%emt 0:00:54]} 17. Rac1 {[%emt 0:02:02]} Nb3 {[%emt 0:02:54]} 18. Rc2 {[%emt 0:01:28]} Bd6 {[%emt 0:03:10]} 19. Na2 {[%emt 0:07:18]} Ra8 {[%emt 0:15:31]} 20. Rc3 {[%emt 0:26:47]} Na5 {[%emt 0:00:22]} 21. b3 {[%emt 0:00:18]} Ne4 {[%emt 0:05:33]} 22. Bxe4 {[%emt 0:13:41]} dxe4 {[%emt 0:00:09]} 23. Rd1 {[%emt 0:08:21]} f6 {[%emt 0:03:47]} 24. b4 {[%emt 0:01:43]} Qb8 {[%emt 0:03:00]} 25. Ng6 {[%emt 0:11:24]} Bxg6 26. Bxd6 {[%emt 0:00:30]} Qxd6 27. bxa5 {[%emt 0:00:30]} Qd8 28. Rdc1 {[%emt 0:00:30]} Qxa5 29. Qg4 {[%emt 0:00:30]} Bf5 30. Qg3 {[%emt 0:00:30]} Rf7 31. Nb4 {[%emt 0:00:30]} Kh7 32. Qd6 {[%emt 0:00:30]} e5 33. Nc6 {[%emt 0:00:30]} Qb6 34. dxe5 {[%emt 0:00:30]} Rd7 35. Qb4 {[%emt 0:00:30]} fxe5 36. Nxe5 {[%emt 0:00:30]} Rd5 37. Nc6 {[%emt 0:00:30]} Re8 38. Nd4 {[%emt 0:00:30]} a5 39. Qb3 {[%emt 0:00:30]} Rde5 40. Nc6 {[%emt 0:00:30]} R5e6 41. Rc5 {[%emt 0:50:30]} Rc8 42. Qd5 {[%emt 0:00:30]} Rf8 43. Nd4 {[%emt 0:00:30]} Rd6 44. Qe5 {[%emt 0:00:30]} Bg6 45. Rc7 {[%emt 0:00:30]} Rff6 46. Re7 {[%emt 0:00:30]} Rf7 47. Rcc7 {[%emt 0:00:30]} Rdf6 48. Rxf7 {[%emt 0:00:30]} Rxf7 49. Rc6 {[%emt 0:00:30]} Qb7 50. Qc5 {[%emt 0:00:30]} b4 51. axb4 {[%emt 0:00:30]} axb4 52. Rb6 {[%emt 0:00:30]} Qa7 53. Qxb4 {[%emt 0:00:30]} Qa1+ 54. Qb1 {[%emt 0:00:30]} Qc3 55. Rxg6 {[%emt 0:00:30]} Kxg6 56. Qxe4+ {[%emt 0:00:30]} Kg5 57. Qg4+ {[%emt 0:00:30]} Kf6 58. Qe6+ {[%emt 0:00:30]} 1-0

[Event "4NCL 2021-22"]
[Site "England"]
[Date "2022.02.12"]
[Round "3.74"]
[White "Merriman, John"]
[Black "Zulfic, Fedja"]
[Result "1-0"]
[ECO "A57"]
[WhiteElo "2261"]
[BlackElo "2231"]
[Annotator "ChessBase"]
[PlyCount "75"]
[EventDate "2021.11.27"]
[EventType "team-tourn"]
[EventCountry "ENG"]
[SourceTitle "playchess.com"]
[Source "ChessBase"]
[SourceQuality "1"]
[TimeControl "40/6000+30:3000+30"]

1. d4 {[%emt 0:00:30]} Nf6 {[%emt 0:02:09]} 2. c4 {[%emt 0:02:38]} c5 {[%emt 0:00:36]} 3. d5 {[%emt 0:00:12]} b5 {[%emt 0:00:05]} 4. a4 {[%emt 0:00:22]} b4 {[%emt 0:01:41]} 5. Nd2 {[%emt 0:00:08]} d6 {[%emt 0:04:06]} 6. e4 {[%emt 0:00:37]} g6 {[%emt 0:00:34]} 7. f4 {[%emt 0:05:07]} Bg7 {[%emt 0:04:26]} 8. Ngf3 {[%emt 0:00:59]} O-O {[%emt 0:01:13]} 9. Bd3 {[%emt 0:02:23]} Nh5 {[%emt 0:13:58]} 10. Nb3 {[%emt 0:10:40]} Bg4 {[%emt 0:18:36]} 11. O-O {[%emt 0:03:36]} e6 {[%emt 0:06:08]} 12. h3 {[%emt 0:05:15]} Bxf3 {[%emt 0:00:16]} 13. Qxf3 {[%emt 0:00:23]} exd5 {[%emt 0:04:55]} 14. cxd5 {[%emt 0:07:41]} Nd7 {[%emt 0:03:01]} 15. g4 {[%emt 0:04:29]} Nhf6 {[%emt 0:00:53]} 16. Nd2 {[%emt 0:07:52]} a5 {[%emt 0:03:05]} 17. Bb5 {[%emt 0:04:30]} Nb6 {[%emt 0:01:04]} 18. Rb1 {[%emt 0:07:27]} Ne8 {[%emt 0:08:19]} 19. Re1 {[%emt 0:09:01]} Ra7 {[%emt 0:09:39]} 20. Nf1 {[%emt 0:09:10]} Re7 {[%emt 0:07:30]} 21. Be3 {[%emt 0:01:16]} Nc7 {[%emt 0:02:21]} 22. Bc6 {[%emt 0:01:08]} Nc4 {[%emt 0:04:03]} 23. b3 {[%emt 0:05:06]} Na3 {[%emt 0:04:13]} 24. Rbc1 {[%emt 0:06:09]} f5 {[%emt 0:06:23]} 25. gxf5 {[%emt 0:01:13]} gxf5 {[%emt 0:00:13]} 26. e5 {[%emt 0:00:33]} dxe5 {[%emt 0:02:32]} 27. Bxc5 {[%emt 0:01:34]} e4 {[%emt 0:00:09]} 28. Qh5 {[%emt 0:06:22]} Rf6 {[%emt 0:00:58]} 29. Bxe7 {[%emt 0:02:27]} Qxe7 {[%emt 0:00:01]} 30. Ne3 {[%emt 0:00:23]} Qd6 {[%emt 0:01:40]} 31. Rf1 {[%emt 0:03:26]} Rg6+ {[%emt 0:00:36]} 32. Kh1 {[%emt 0:00:59]} Rh6 {[%emt 0:00:35]} 33. Qxf5 {[%emt 0:00:26]} Qe7 {[%emt 0:00:30]} 34. d6 {[%emt 0:00:45]} Rxd6 {[%emt 0:00:22]} 35. Bxe4 {[%emt 0:00:27]} Rh6 {[%emt 0:00:15]} 36. Kh2 {[%emt 0:01:28]} Ne8 {[%emt 0:00:54]} 37. Rc8 {[%emt 0:00:20]} Rf6 {[%emt 0:00:26]} 38. Nd5 {[%emt 0:00:42]} 1-0

[Event "4NCL 2021-22"]
[Site "England"]
[Date "2022.02.12"]
[Round "3.75"]
[White "Quinn, John M"]
[Black "Harakis, Alexis M"]
[Result "1/2-1/2"]
[ECO "D63"]
[WhiteElo "2206"]
[BlackElo "2264"]
[Annotator "ChessBase"]
[PlyCount "80"]
[EventDate "2021.11.27"]
[EventType "team-tourn"]
[EventCountry "ENG"]
[SourceTitle "playchess.com"]
[Source "ChessBase"]
[SourceQuality "1"]
[TimeControl "40/6000+30:3000+30"]

1. d4 {[%emt 0:00:03]} e6 {[%emt 0:04:11]} 2. c4 {[%emt 0:00:35]} Nf6 {[%emt 0:00:07]} 3. Nc3 {[%emt 0:00:24]} d5 {[%emt 0:00:06]} 4. Bg5 {[%emt 0:00:56]} Nbd7 {[%emt 0:01:29]} 5. e3 {[%emt 0:01:38]} h6 {[%emt 0:02:20]} 6. Bh4 {[%emt 0:00:27]} Be7 {[%emt 0:00:46]} 7. Nf3 {[%emt 0:02:25]} O-O {[%emt 0:07:42]} 8. Rc1 {[%emt 0:00:22]} Re8 {[%emt 0:00:57]} 9. Bd3 {[%emt 0:05:33]} dxc4 {[%emt 0:00:15]} 10. Bxc4 {[%emt 0:00:07]} a6 {[%emt 0:00:12]} 11. a4 {[%emt 0:13:53]} b6 {[%emt 0:04:58]} 12. O-O {[%emt 0:03:58]} Bb7 {[%emt 0:00:12]} 13. Qe2 {[%emt 0:02:35]} Ra7 {[%emt 0:02:42]} 14. Rfe1 {[%emt 0:26:53]} c5 {[%emt 0:05:52]} 15. dxc5 {[%emt 0:06:31]} Nxc5 {[%emt 0:00:30]} 16. Red1 {[%emt 0:07:31]} Qa8 {[%emt 0:00:13]} 17. Ne1 {[%emt 0:08:05]} Bc6 {[%emt 0:04:34]} 18. Qc2 {[%emt 0:04:47]} Rc8 {[%emt 0:02:07]} 19. Ba2 {[%emt 0:01:52]} b5 {[%emt 0:01:45]} 20. b4 {[%emt 0:07:29]} Nxa4 {[%emt 0:02:04]} 21. Nxa4 {[%emt 0:05:43]} bxa4 {[%emt 0:00:03]} 22. Bb1 {[%emt 0:01:02]} Rd7 {[%emt 0:02:24]} 23. Bxf6 {[%emt 0:00:51]} Bxf6 {[%emt 0:00:03]} 24. Qh7+ {[%emt 0:04:02]} Kf8 {[%emt 0:00:18]} 25. Nd3 {[%emt 0:04:24]} Rcd8 {[%emt 0:01:18]} 26. f3 {[%emt 0:00:32]} Bb5 {[%emt 0:03:19]} 27. Rc5 {[%emt 0:00:41]} Qb7 {[%emt 0:01:03]} 28. Bc2 {[%emt 0:00:27]} g6 {[%emt 0:00:12]} 29. Qxh6+ {[%emt 0:00:35]} Bg7 {[%emt 0:00:04]} 30. Qh4 {[%emt 0:00:33]} Bxd3 {[%emt 0:00:23]} 31. Bxd3 {[%emt 0:00:24]} Rxd3 32. Qxd8+ {[%emt 0:00:30]} Rxd8 33. Rxd8+ {[%emt 0:00:30]} Ke7 34. Rdc8 {[%emt 0:00:30]} Qxb4 35. g4 {[%emt 0:00:30]} Qe1+ 36. Kg2 {[%emt 0:00:30]} Qxe3 37. R8c7+ {[%emt 0:00:30]} Kf6 38. g5+ {[%emt 0:00:30]} Qxg5+ 39. Rxg5 {[%emt 0:00:30]} Kxg5 40. Rc5+ {[%emt 0:00:30]} f5 1/2-1/2

[Event "4NCL 2021-22"]
[Site "England"]
[Date "2022.02.12"]
[Round "3.76"]
[White "Skettos, Nicolas"]
[Black "Pedersen, Carsten"]
[Result "1/2-1/2"]
[ECO "C06"]
[WhiteElo "1940"]
[BlackElo "2096"]
[Annotator "ChessBase"]
[PlyCount "72"]
[EventDate "2021.11.27"]
[EventType "team-tourn"]
[EventCountry "ENG"]
[SourceTitle "playchess.com"]
[Source "ChessBase"]
[SourceQuality "1"]
[TimeControl "40/6000+30:3000+30"]

1. e4 {[%emt 0:00:06]} e6 {[%emt 0:00:05]} 2. d4 {[%emt 0:00:02]} d5 {[%emt 0:00:04]} 3. Nd2 {[%emt 0:00:40]} Nf6 {[%emt 0:01:23]} 4. e5 {[%emt 0:00:27]} Nfd7 {[%emt 0:00:01]} 5. c3 {[%emt 0:00:09]} c5 {[%emt 0:00:05]} 6. Bd3 {[%emt 0:00:03]} Nc6 {[%emt 0:01:29]} 7. Ne2 {[%emt 0:01:45]} cxd4 {[%emt 0:00:11]} 8. cxd4 {[%emt 0:00:02]} f6 {[%emt 0:00:07]} 9. exf6 {[%emt 0:00:04]} Nxf6 {[%emt 0:00:05]} 10. Nf3 {[%emt 0:00:08]} Bd6 {[%emt 0:00:05]} 11. O-O {[%emt 0:01:52]} Qc7 {[%emt 0:01:14]} 12. h3 {[%emt 0:00:39]} O-O {[%emt 0:00:51]} 13. Be3 {[%emt 0:01:22]} Bd7 {[%emt 0:00:55]} 14. Re1 {[%emt 0:04:18]} Be8 {[%emt 0:06:45]} 15. Ng5 {[%emt 0:01:04]} Bf7 {[%emt 0:01:59]} 16. Qc2 {[%emt 0:15:42]} h6 {[%emt 0:02:41]} 17. Nxf7 {[%emt 0:00:42]} Qxf7 {[%emt 0:00:15]} 18. Bg6 {[%emt 0:04:13]} Qd7 {[%emt 0:02:09]} 19. Rac1 {[%emt 0:16:18]} Rac8 {[%emt 0:04:23]} 20. Nc3 {[%emt 0:11:18]} Ne7 {[%emt 0:24:22]} 21. Bd3 {[%emt 0:00:13]} Nf5 {[%emt 0:09:06]} 22. Qd2 {[%emt 0:11:00]} a6 {[%emt 0:02:06]} 23. Ne2 {[%emt 0:08:16]} g5 {[%emt 0:22:09]} 24. Rxc8 {[%emt 0:00:30]} Rxc8 {[%emt 0:00:30]} 25. g3 {[%emt 0:00:30]} Qg7 {[%emt 0:00:30]} 26. Rc1 {[%emt 0:00:30]} Rf8 {[%emt 0:00:30]} 27. Kg2 {[%emt 0:00:30]} Kh8 {[%emt 0:00:30]} 28. Rf1 {[%emt 0:00:30]} Qf7 {[%emt 0:00:30]} 29. f4 {[%emt 0:00:30]} g4 {[%emt 0:00:30]} 30. h4 {[%emt 0:00:30]} Bb4 {[%emt 0:00:30]} 31. Nc3 {[%emt 0:00:30]} Nh5 {[%emt 0:00:30]} 32. Bf2 {[%emt 0:00:30]} Bd6 {[%emt 0:00:30]} 33. Ne2 {[%emt 0:00:30]} Nf6 {[%emt 0:00:30]} 34. Re1 {[%emt 0:00:30]} Bb8 {[%emt 0:00:30]} 35. Bc2 {[%emt 0:00:30]} Bc7 {[%emt 0:00:30]} 36. Nc1 {[%emt 0:00:30]} Re8 {[%emt 0:00:30]} 1/2-1/2

[Event "4NCL 2021-22"]
[Site "England"]
[Date "2022.02.12"]
[Round "3.77"]
[White "Stevenson, James"]
[Black "Young, Daniel J"]
[Result "1/2-1/2"]
[ECO "B20"]
[WhiteElo "2108"]
[BlackElo "1938"]
[Annotator "ChessBase"]
[PlyCount "40"]
[EventDate "2021.11.27"]
[EventType "team-tourn"]
[EventCountry "ENG"]
[SourceTitle "playchess.com"]
[Source "ChessBase"]
[SourceQuality "1"]
[TimeControl "40/6000+30:3000+30"]

1. e4 {[%emt 0:00:09]} c5 {[%emt 0:00:08]} 2. b4 {[%emt 0:00:38]} cxb4 {[%emt 0:00:16]} 3. a3 {[%emt 0:00:10]} d5 {[%emt 0:00:55]} 4. exd5 {[%emt 0:00:19]} Qxd5 {[%emt 0:00:13]} 5. Nf3 {[%emt 0:01:37]} Bg4 {[%emt 0:09:27]} 6. Bb2 {[%emt 0:13:43]} e6 {[%emt 0:12:08]} 7. Be2 {[%emt 0:03:28]} Nf6 {[%emt 0:02:45]} 8. O-O Be7 {[%emt 0:05:01]} 9. axb4 {[%emt 0:04:19]} Bxb4 {[%emt 0:07:11]} 10. c4 {[%emt 0:03:36]} Qd8 {[%emt 0:09:11]} 11. d4 {[%emt 0:14:50]} O-O {[%emt 0:02:33]} 12. Qb3 {[%emt 0:02:34]} a5 {[%emt 0:09:44]} 13. Nc3 {[%emt 0:01:36]} Nc6 {[%emt 0:04:25]} 14. Nb5 {[%emt 0:06:03]} Be7 {[%emt 0:06:38]} 15. Rfd1 {[%emt 0:02:01]} Nb4 {[%emt 0:11:56]} 16. Rac1 {[%emt 0:06:51]} Rc8 {[%emt 0:06:18]} 17. Na7 {[%emt 0:02:38]} Ra8 {[%emt 0:00:22]} 18. Nb5 {[%emt 0:00:12]} Rc8 {[%emt 0:01:52]} 19. Na7 {[%emt 0:00:19]} Ra8 {[%emt 0:00:05]} 20. Nb5 {[%emt 0:00:15]} Kh8 {[%emt 0:00:25]} 1/2-1/2